bitfinex/quotes_SOLUSD_20251208
["timestamp","ask_amount","ask_price","bid_price","bid_amount"]
[1765165227185,15.66934445,134.24,134.23,0.71000001]
[1765165227900,15.66934445,134.24,134.23,1e-08]
[1765165229178,7.44934445,134.24,134.23,0.71000001]
[1765165229699,7.44934445,134.24,134.23,2.8794055]
[1765165229992,0.15122449,134.26,134.23,11.68935042]
[1765165230188,0.15122449,134.26,134.25,2.16940549]
[1765165230788,0.15122449,134.26,134.25,2.87940549]
[1765165231325,7.59945925,134.26,134.25,2.87940549]
[1765165232688,7.59945925,134.26,134.24,2.16940549]
[1765165232869,26.22004617,134.26,134.24,0.71]
[1765165233076,8.22,134.25,134.23,1e-08]
[1765165233573,8.88,134.25,134.23,1e-08]
[1765165234677,7.44934445,134.24,134.23,1e-08]
[1765165235697,7.44934445,134.24,134.23,2.8794055]
[1765165235882,15.66887796,134.25,134.23,2.8794055]
[1765165236076,15.66887796,134.25,134.24,0.71]
[1765165236590,8.22,134.25,134.24,0.71]
[1765165236985,7.5995523,134.26,134.24,0.71]
[1765165237191,7.5995523,134.26,134.25,2.16940549]
[1765165237192,0.15122449,134.26,134.25,2.16940549]
[1765165237397,7.59958992,134.26,134.24,2.87940549]
[1765165237614,0.15122449,134.26,134.25,2.16940549]
[1765165237813,0.15122449,134.26,134.25,2.87940549]
[1765165238683,0.15122449,134.26,134.25,4.09986444]
[1765165239085,0.15122449,134.26,134.25,12.90980936]
[1765165239676,0.15122449,134.26,134.25,4.09986444]
[1765165239880,0.15122449,134.26,134.25,0.71]
[1765165240697,7.59760965,134.27,134.25,0.71]
[1765165240698,7.44815734,134.27,134.25,0.71]
[1765165240903,0.14124305,134.26,134.25,0.71]
[1765165245199,0.14124305,134.26,134.25,4.09986444]
[1765165246206,0.14124305,134.26,134.25,12.90980936]
[1765165246619,0.14124305,134.26,134.25,44.88746293]
[1765165247618,0.14124305,134.26,134.25,41.49759849]
[1765165247798,0.14124305,134.26,134.25,44.88746293]
[1765165253124,0.14124305,134.26,134.25,48.27732737]
[1765165253325,0.14471176,134.27,134.26,25.11880892]
[1765165253500,0.14471176,134.27,134.26,32.6085378]
[1765165254022,0.14471176,134.27,134.26,40.05677256]
[1765165255230,0.15615828,134.28,134.26,23.74790856]
[1765165255401,0.13694938,134.29,134.28,16.308864]
[1765165255607,0.13694938,134.29,134.28,36.72867336]
[1765165255926,0.13694938,134.29,134.28,37.43867336]
[1765165256096,0.13694938,134.29,134.28,44.88579876]
[1765165259529,0.13694938,134.29,134.23,53.31908326]
[1765165259530,7.5835757,134.29,134.23,1e-08]
[1765165259741,3.38986444,134.24,134.23,1e-08]
[1765165260036,20.41980936,134.24,134.23,1e-08]
[1765165260203,24.528864,134.25,134.23,1e-08]
[1765165260404,11.60986444,134.26,134.23,1e-08]
[1765165260605,12.19980936,134.27,134.23,1e-08]
[1765165260906,12.19980936,134.27,134.23,3.38986445]
[1765165260907,0.16134673,134.24,134.23,3.38986445]
[1765165261312,0.16134673,134.24,134.23,1e-08]
[1765165261508,7.61069118,134.24,134.23,1e-08]
[1765165267937,0.16134673,134.24,134.23,4.04986445]
[1765165269236,0.16134673,134.24,134.23,1e-08]
[1765165269438,8.80994492,134.23,134.17,0.66]
[1765165269618,3.38986444,134.19,134.15,0.86]
[1765165269814,7.45267551,134.18,134.15,0.86]
[1765165270134,7.45267551,134.18,134.15,0.2]
[1765165271123,26.08436428,134.18,134.15,0.86]
[1765165272041,29.47422872,134.18,134.15,0.2]
[1765165273111,26.08436428,134.18,134.15,0.2]
[1765165275221,26.08436428,134.18,134.15,0.86]
[1765165275649,16.308864,134.2,134.15,0.2]
[1765165275823,8.24,134.19,134.15,0.86]
[1765165276023,11.62986444,134.19,134.15,0.86]
[1765165278123,10.84253995,134.18,134.15,0.86]
[1765165278518,10.84253995,134.18,134.15,0.2]
[1765165278816,10.84253995,134.18,134.15,0.86]
[1765165279522,3.38986444,134.16,134.15,0.2]
[1765165280134,10.84365096,134.16,134.15,0.2]
[1765165280450,7.45378652,134.16,134.15,0.2]
[1765165280828,7.61054241,134.16,134.15,0.2]
[1765165282452,19.24040685,134.16,134.15,0.2]
[1765165282649,11.00040685,134.16,134.15,0.2]
[1765165282830,19.24040685,134.16,134.15,0.2]
[1765165284129,7.61054241,134.16,134.15,0.91]
[1765165285255,7.61054241,134.16,134.15,0.2]
[1765165285659,7.61054241,134.16,134.15,0.91]
[1765165286043,7.61054241,134.16,134.15,0.2]
[1765165286245,7.61054241,134.16,134.15,0.91]
[1765165287250,7.61054241,134.16,134.15,0.2]
[1765165288562,7.61054241,134.16,134.15,0.91]
[1765165289061,0.15675589,134.16,134.15,0.91]
[1765165290259,7.61054241,134.16,134.15,0.91]
[1765165291659,0.15675589,134.16,134.15,0.91]
[1765165292167,0.15675589,134.16,134.15,4.29986444]
[1765165292354,0.15675589,134.16,134.15,11.75420659]
[1765165292950,0.15675589,134.16,134.15,20.56415151]
[1765165294178,0.15675589,134.16,134.15,36.87301551]
[1765165296366,0.15007189,134.17,134.16,25.11880892]
[1765165296567,0.15007189,134.17,134.16,37.45867336]
[1765165298574,0.15007189,134.17,134.16,44.91245988]
[1765165298909,0.14918821,134.18,134.16,43.69351177]
[1765165299085,0.14918821,134.18,134.17,0.71]
[1765165299671,0.14918821,134.18,134.17,2.88091633]
[1765165300779,0.16012372,134.19,134.18,16.26262043]
[1765165300964,0.16012372,134.19,134.18,19.14353676]
[1765165303493,0.1524734,134.2,134.18,27.82720208]
[1765165303673,0.15752529,134.21,134.19,28.61452657]
[1765165303866,0.15752529,134.21,134.2,2.17091633]
[1765165304188,0.15752529,134.21,134.2,2.88091633]
[1765165305201,0.15752529,134.21,134.2,26.64134515]
[1765165305375,0.15290051,134.22,134.2,19.14242607]
[1765165305567,0.14304221,134.24,134.23,16.308864]
[1765165305770,0.13657893,134.26,134.24,8.80994492]
[1765165305984,0.13657893,134.26,134.24,9.51994492]
[1765165306299,0.13657893,134.26,134.24,11.69086125]
[1765165307208,0.13657893,134.26,134.24,19.1402057]
[1765165307761,0.13657893,134.26,134.24,2.88091633]
[1765165308005,7.58490797,134.26,134.23,26.71978033]
[1765165308307,7.58490797,134.26,134.23,18.47978033]
[1765165309203,0.13657893,134.26,134.23,19.18978033]
[1765165309701,0.13657893,134.26,134.24,2.17091633]
[1765165311503,0.13657893,134.26,134.24,10.33026078]
[1765165312106,0.13657893,134.26,134.22,2.17091633]
[1765165312107,0.31372928,134.25,134.22,2.17091633]
[1765165314796,7.76262938,134.25,134.22,2.17091633]
[1765165315692,0.16372928,134.25,134.23,2.88091633]
[1765165315895,0.16372928,134.25,134.24,2.17091633]
[1765165318795,0.16372928,134.25,134.24,27.3802057]
[1765165320899,7.44714227,134.28,134.24,27.3802057]
[1765165321103,0.15,134.27,134.24,8.24]
[1765165321304,0.15,134.27,134.23,2.17091633]
[1765165321774,0.15,134.27,134.23,2.88091633]
[1765165322510,26.06495579,134.28,134.24,2.17091633]
[1765165322679,7.44714227,134.28,134.26,2.17091633]
[1765165323013,7.44714227,134.28,134.25,2.88091633]
[1765165323612,7.44657085,134.29,134.25,2.88091633]
[1765165323786,7.59657085,134.29,134.25,2.88091633]
[1765165325311,7.59657085,134.29,134.26,2.17091633]
[1765165325613,7.59657085,134.29,134.25,2.88091633]
[1765165326781,0.15,134.28,134.22,0.71]
[1765165326987,2.32091633,134.28,134.23,2.17091633]
[1765165327212,2.32091633,134.28,134.21,24.548864]
[1765165327426,2.32091633,134.27,134.22,2.17091633]
[1765165327795,7.44878957,134.25,134.22,2.17091633]
[1765165330092,7.44878957,134.25,134.22,2.88091633]
[1765165331993,26.21770266,134.27,134.22,2.88091633]
[1765165332191,0.15,134.26,134.22,2.88091633]
[1765165333129,7.44878957,134.25,134.22,2.88091633]
[1765165335412,7.44878957,134.25,134.23,2.88091633]
[1765165335610,7.44878957,134.25,134.22,2.88091633]
[1765165336619,7.44823476,134.26,134.22,2.88091633]
[1765165336811,7.59823476,134.26,134.22,2.88091633]
[1765165338619,7.59823476,134.26,134.23,2.17091633]
[1765165339814,7.59823476,134.26,134.22,2.88091633]
[1765165340901,7.59823476,134.26,134.23,0.7]
[1765165341912,26.84002262,134.27,134.24,2.17091633]
[1765165341913,15.66786546,134.27,134.24,2.17091633]
[1765165342204,2.32091633,134.26,134.21,0.7]
[1765165342411,2.17091633,134.25,134.19,18.54286731]
[1765165342715,2.17091633,134.25,134.19,16.37195098]
[1765165342716,2.17091633,134.24,134.19,16.37195098]
[1765165342911,2.17091633,134.24,134.19,15.67195098]
[1765165343105,2.32091633,134.24,134.2,0.7]
[1765165343602,7.44989942,134.23,134.2,0.7]
[1765165346826,7.44989942,134.23,134.2,2.87091633]
[1765165347196,7.44989942,134.23,134.21,0.7]
[1765165350640,18.61883416,134.28,134.22,25.11880892]
[1765165350940,18.61883416,134.28,134.23,2.17091633]
[1765165351128,18.61883416,134.28,134.23,2.87091633]
[1765165351311,18.76883416,134.28,134.24,0.7]
[1765165351506,18.61883416,134.28,134.24,0.7]
[1765165351710,7.44657085,134.29,134.25,2.17091633]
[1765165352122,7.44657085,134.29,134.26,0.7]
[1765165352623,26.06158553,134.3,134.26,0.7]
[1765165352816,26.21158553,134.3,134.26,0.7]
[1765165353216,28.38250186,134.3,134.26,0.7]
[1765165354928,28.23250186,134.3,134.24,18.47978033]
[1765165355121,2.17091633,134.27,134.23,0.7]
[1765165355327,8.24,134.27,134.24,16.308864]
[1765165355632,8.39,134.27,134.24,16.308864]
[1765165356340,7.44823476,134.26,134.24,16.308864]
[1765165359541,7.44823476,134.26,134.21,25.228864]
[1765165359542,0.15,134.25,134.21,25.228864]
[1765165359914,0.15,134.25,134.22,0.7]
[1765165360110,29.46010572,134.26,134.22,0.7]
[1765165360111,29.61010572,134.26,134.22,0.7]
[1765165360316,3.39128404,134.24,134.19,0.7]
[1765165360512,0.15,134.25,134.19,0.7]
[1765165360513,11.63128404,134.23,134.19,0.7]
[1765165361135,11.63128404,134.23,134.17,3.39128404]
[1765165361136,3.54128404,134.22,134.18,0.7]
[1765165361332,7.45100961,134.21,134.19,16.308864]
[1765165362435,7.45100961,134.21,134.19,17.008864]
[1765165363653,7.45045447,134.22,134.19,17.008864]
[1765165365554,7.60045447,134.22,134.19,16.308864]
[1765165365946,7.45045447,134.22,134.19,17.008864]
[1765165368629,29.4678747,134.22,134.19,17.008864]
[1765165370659,7.45156482,134.2,134.19,17.008864]
[1765165377843,8.22,134.21,134.19,0.7]
[1765165378160,8.22,134.21,134.2,0.66]
[1765165378963,8.22,134.22,134.2,0.66]
[1765165379150,3.39128404,134.23,134.2,0.66]
[1765165379351,8.22,134.22,134.2,0.66]
[1765165379759,15.67065351,134.22,134.2,0.66]
[1765165380975,19.06193755,134.22,134.19,16.308864]
[1765165381162,19.06193755,134.22,134.19,16.968864]
[1765165382472,37.68807374,134.22,134.19,16.968864]
[1765165383469,37.83807374,134.22,134.19,16.308864]
[1765165384076,34.4467897,134.22,134.19,16.308864]
[1765165384375,37.83807374,134.22,134.19,16.968864]
[1765165384760,15.67065351,134.22,134.2,0.66]
[1765165385163,0.15,134.21,134.18,16.308864]
[1765165385476,19.21193755,134.22,134.18,16.968864]
[1765165385671,29.61807374,134.22,134.19,0.66]
[1765165385878,3.39128404,134.2,134.17,16.968864]
[1765165386076,8.22,134.19,134.17,16.968864]
[1765165386677,7.45267551,134.18,134.17,16.968864]
[1765165386873,7.60267551,134.18,134.15,0.2]
[1765165387170,8.22,134.17,134.15,0.2]
[1765165387357,8.22,134.17,134.15,0.86]
[1765165387754,8.22,134.17,134.15,0.2]
[1765165388272,8.22,134.17,134.15,17.168864]
[1765165388677,15.67361575,134.17,134.15,17.168864]
[1765165394478,15.67361575,134.17,134.15,16.508864]
[1765165394662,15.67361575,134.17,134.15,17.168864]
[1765165396881,7.45361575,134.17,134.15,16.508864]
[1765165397181,15.67361575,134.17,134.16,0.66]
[1765165397582,7.45361575,134.17,134.16,0.66]
[1765165400587,7.45361575,134.17,134.15,0.2]
[1765165400885,10.84489979,134.17,134.15,0.2]
[1765165401992,7.45361575,134.17,134.15,17.198864]
[1765165410289,10.84489979,134.17,134.15,17.198864]
[1765165413390,7.45361575,134.17,134.15,17.198864]
[1765165413896,7.45361575,134.17,134.15,0.2]
[1765165414076,7.45361575,134.17,134.15,0.89]
[1765165417978,8.22,134.16,134.15,0.89]
[1765165418375,11.76128404,134.16,134.15,0.2]
[1765165418695,11.76128404,134.16,134.15,1e-08]
[1765165419378,19.21507056,134.16,134.15,1e-08]
[1765165420889,17.99806617,134.16,134.15,1e-08]
[1765165421799,0.15,134.15,134.14,1e-08]
[1765165421977,2.32427965,134.15,134.14,1e-08]
[1765165423904,9.7786218,134.15,134.14,1e-08]
[1765165427002,17.8486218,134.15,134.14,1e-08]
[1765165433212,9.6286218,134.15,134.14,1e-08]
[1765165433415,17.8486218,134.15,134.14,1e-08]
[1765165434318,9.6286218,134.15,134.14,1e-08]
[1765165434503,17.8486218,134.15,134.14,1e-08]
[1765165441224,20.83403061,134.15,134.14,1e-08]
[1765165441719,17.9986218,134.15,134.14,1e-08]
[1765165441907,20.83425344,134.15,134.14,1e-08]
[1765165442904,29.64419836,134.15,134.13,1e-08]
[1765165443122,2.32427965,134.14,134.13,1e-08]
[1765165443503,5.31013416,134.14,134.13,1e-08]
[1765165444029,5.16013416,134.14,134.13,1e-08]
[1765165444223,5.31013416,134.14,134.13,1e-08]
[1765165444714,12.61503202,134.14,134.13,1e-08]
[1765165462245,12.61503202,134.14,134.13,0.66000001]
[1765165462544,12.61503202,134.14,134.13,1e-08]
[1765165463143,12.61503202,134.14,134.13,0.66000001]
[1765165463448,17.84917751,134.14,134.13,0.66000001]
[1765165467148,9.62917751,134.14,134.13,0.66000001]
[1765165467351,17.84917751,134.14,134.13,0.66000001]
[1765165470648,9.62917751,134.14,134.13,0.66000001]
[1765165470849,17.84917751,134.14,134.13,0.66000001]
[1765165477933,9.62917751,134.14,134.13,0.66000001]
[1765165478136,17.84917751,134.14,134.13,0.66000001]
[1765165478860,9.62917751,134.14,134.13,0.66000001]
[1765165479158,17.84917751,134.14,134.13,0.66000001]
[1765165479946,9.62917751,134.14,134.13,0.66000001]
[1765165480148,20.83480915,134.14,134.13,0.66000001]
[1765165480660,10.4405295,134.14,134.13,0.66000001]
[1765165480857,13.83985236,134.14,134.13,0.66000001]
[1765165481237,19.07422072,134.14,134.13,0.66000001]
[1765165482854,22.05985236,134.14,134.13,0.66000001]
[1765165484060,19.07422072,134.14,134.13,0.66000001]
[1765165493072,10.85422072,134.14,134.13,0.66000001]
[1765165493469,15.67489786,134.14,134.13,0.66000001]
[1765165494461,8.22,134.14,134.13,0.66000001]
[1765165496393,15.67489786,134.14,134.13,0.66000001]
[1765165503162,19.07422072,134.14,134.13,1e-08]
[1765165503364,28.03416564,134.14,134.13,1e-08]
[1765165503665,28.03416564,134.14,134.1,0.1]
[1765165503666,8.95994492,134.13,134.09,1e-08]
[1765165503978,12.20926778,134.1,134.09,1e-08]
[1765165504282,20.42926778,134.1,134.09,1e-08]
[1765165504458,20.57926778,134.1,134.09,1e-08]
[1765165504962,23.41623712,134.1,134.09,1e-08]
[1765165505296,26.10381861,134.08,134.05,0.2]
[1765165505581,15.67823389,134.08,134.07,0.67]
[1765165506152,18.66419255,134.1,134.07,4.06932286]
[1765165506356,15.67722321,134.1,134.07,4.26932286]
[1765165506560,15.67722321,134.1,134.08,0.67]
[1765165507679,19.07654607,134.1,134.08,0.67]
[1765165508582,10.85654607,134.1,134.08,0.67]
[1765165508785,19.07654607,134.1,134.08,0.67]
[1765165510368,3.39932286,134.09,134.08,0.67]
[1765165510763,7.45722321,134.1,134.08,0.67]
[1765165510968,8.22,134.09,134.08,0.67]
[1765165511986,15.67767767,134.09,134.08,0.67]
[1765165517792,7.45767767,134.09,134.08,0.67]
[1765165523485,22.3955806,134.11,134.08,20.37818686]
[1765165523686,18.63874957,134.13,134.09,3.39932286]
[1765165523687,15.67600954,134.12,134.09,3.39932286]
[1765165523899,15.67600954,134.12,134.09,23.07223735]
[1765165524205,15.67600954,134.12,134.1,0.68]
[1765165524974,8.22,134.11,134.1,0.68]
[1765165526109,8.22,134.11,134.1,19.31874957]
[1765165527006,15.6765655,134.11,134.1,19.31874957]
[1765165527504,7.4565655,134.11,134.1,19.31874957]
[1765165528188,18.63874957,134.13,134.1,19.31874957]
[1765165528394,26.85874957,134.13,134.11,0.68]
[1765165528906,26.85874957,134.13,134.11,19.31874957]
[1765165529601,34.31420323,134.13,134.12,0.68]
[1765165530587,34.31420323,134.13,134.12,19.31874957]
[1765165531082,15.67545366,134.13,134.12,19.31874957]
[1765165532610,7.45545366,134.13,134.12,19.31874957]
[1765165533605,29.49341068,134.13,134.1,0.68]
[1765165533815,11.61932286,134.12,134.1,0.68]
[1765165535810,10.85588836,134.11,134.09,0.68]
[1765165536011,8.22,134.1,134.09,0.68]
[1765165538189,15.67712155,134.1,134.09,0.68]
[1765165545311,15.67712155,134.1,134.07,22.3955806]
[1765165545507,15.67712155,134.1,134.09,0.68]
[1765165548012,15.67712155,134.1,134.07,22.3955806]
[1765165548204,36.49577798,134.1,134.08,0.68]
[1765165549602,28.27577798,134.1,134.08,0.68]
[1765165549807,15.67712155,134.1,134.08,0.68]
[1765165551222,7.45712155,134.1,134.08,0.68]
[1765165554929,7.45712155,134.1,134.08,19.32067627]
[1765165555104,7.45712155,134.1,134.09,0.7]
[1765165555926,7.45668652,134.11,134.09,0.7]
[1765165556122,18.64067627,134.12,134.11,16.308864]
[1765165556322,26.85778182,134.14,134.11,16.308864]
[1765165556323,7.45560745,134.13,134.11,16.308864]
[1765165556524,7.45560745,134.13,134.12,0.7]
[1765165560308,15.67489786,134.14,134.12,0.7]
[1765165562332,7.45489786,134.14,134.12,0.7]
[1765165562531,7.45439697,134.15,134.12,0.7]
[1765165562736,7.45439697,134.15,134.12,2.87585256]
[1765165563541,7.45439697,134.15,134.13,0.72]
[1765165564141,7.45378652,134.16,134.13,0.72]
[1765165567839,8.22,134.19,134.14,18.48471656]
[1765165568344,8.22,134.19,134.15,0.72]
[1765165568839,7.45212012,134.19,134.16,16.308864]
[1765165569246,7.45212012,134.19,134.17,0.72]
[1765165569471,18.62638874,134.22,134.17,0.72]
[1765165569751,20.8022413,134.22,134.17,0.72]
[1765165569921,29.0222413,134.22,134.17,0.72]
[1765165571719,36.47269577,134.22,134.17,0.72]
[1765165572120,2.17585256,134.21,134.17,0.72]
[1765165572641,7.45156482,134.2,134.17,0.72]
[1765165573960,26.07853363,134.21,134.17,0.72]
[1765165576531,7.45100961,134.21,134.18,2.17585256]
[1765165576846,7.45100961,134.21,134.17,0.72]
[1765165576847,2.17585256,134.21,134.17,0.72]
[1765165577052,2.17585256,134.2,134.17,0.72]
[1765165577854,2.17585256,134.18,134.15,0.72]
[1765165578432,7.45323097,134.17,134.15,0.72]
[1765165580049,9.62908353,134.17,134.15,0.72]
[1765165584859,9.62908353,134.17,134.15,0.72]
[1765165586135,9.63014795,134.16,134.15,0.68]
[1765165587352,7.45429539,134.16,134.15,0.68]
[1765165588968,20.80535588,134.2,134.15,0.68]
[1765165589262,29.02535588,134.2,134.15,0.68]
[1765165590079,36.4769207,134.2,134.15,0.68]
[1765165590768,0.2,134.26,134.19,18.48471656]
[1765165590944,7.64897089,134.25,134.22,2.17585256]
[1765165591156,26.27094481,134.25,134.2,11.07585256]
[1765165591337,2.17585256,134.24,134.21,0.68]
[1765165591943,28.59679737,134.25,134.21,0.68]
[1765165593378,26.27094481,134.25,134.21,2.85585256]
[1765165593547,7.64897089,134.25,134.21,2.85585256]
[1765165593745,7.64897089,134.25,134.22,0.68]
[1765165593964,7.64897089,134.25,134.22,2.85585256]
[1765165594343,7.64897089,134.25,134.23,0.68]
[1765165594870,7.64897089,134.25,134.23,2.85585256]
[1765165595342,0.2,134.25,134.24,0.68]
[1765165595547,7.64878957,134.25,134.24,0.68]
[1765165595880,7.64878957,134.25,134.21,2.17585256]
[1765165596046,7.64878957,134.25,134.21,11.07585256]
[1765165596242,7.64878957,134.25,134.22,0.68]
[1765165598249,7.64878957,134.25,134.22,2.85585256]
[1765165599447,7.64878957,134.25,134.22,2.17585256]
[1765165599646,7.64878957,134.25,134.23,0.68]
[1765165600274,7.79878957,134.25,134.21,11.07585256]
[1765165600573,7.79878957,134.25,134.21,8.22]
[1765165600743,7.79878957,134.25,134.22,0.68]
[1765165600946,7.64878957,134.25,134.22,0.68]
[1765165602448,7.79878957,134.25,134.22,0.68]
[1765165602849,7.64878957,134.25,134.22,0.68]
[1765165607886,7.64878957,134.25,134.22,4.07218895]
[1765165608255,7.64878957,134.25,134.23,0.68]
[1765165608476,7.64878957,134.25,134.22,0.68]
[1765165608878,29.66295244,134.25,134.22,0.68]
[1765165609047,29.81295244,134.25,134.21,0.68]
[1765165609369,37.88295244,134.25,134.21,0.68]
[1765165609580,34.49076349,134.25,134.21,0.68]
[1765165615988,37.88295244,134.25,134.21,0.68]
[1765165616171,34.49076349,134.25,134.21,0.68]
[1765165619361,34.64076349,134.25,134.21,0.68]
[1765165620381,34.49076349,134.25,134.21,0.68]
[1765165620583,34.64076349,134.25,134.21,0.68]
[1765165622269,0.2,134.25,134.23,3.39218895]
[1765165622786,7.64878957,134.25,134.24,0.71]
[1765165623580,7.64878957,134.25,134.23,0.71]
[1765165624274,29.81295244,134.25,134.21,17.018864]
[1765165624490,3.39218895,134.23,134.21,16.308864]
[1765165624784,3.39218895,134.22,134.2,0.71]
[1765165625090,7.45100961,134.21,134.19,0.71]
[1765165627990,7.45045447,134.22,134.19,0.71]
[1765165629570,29.46877961,134.22,134.19,0.71]
[1765165629786,29.61877961,134.22,134.18,8.91]
[1765165629970,29.61877961,134.22,134.18,8.2]
[1765165630170,29.46877961,134.22,134.19,0.71]
[1765165631185,7.44989942,134.23,134.21,3.39218895]
[1765165631387,7.44989942,134.23,134.21,0.71]
[1765165632290,7.44989942,134.23,134.2,0.71]
[1765165633685,26.07326376,134.24,134.2,0.71]
[1765165634688,0.2,134.25,134.23,3.39218895]
[1765165635089,0.2,134.25,134.24,0.71]
[1765165635771,0.2,134.25,134.24,25.218864]
[1765165636077,0.2,134.25,134.24,16.308864]
[1765165636277,7.64878957,134.25,134.24,17.018864]
[1765165636491,7.64878957,134.25,134.24,0.71]
[1765165640804,7.64878957,134.25,134.22,8.2]
[1765165641103,7.64878957,134.25,134.23,0.69]
[1765165641308,7.64878957,134.25,134.22,8.89]
[1765165641978,7.64878957,134.25,134.22,8.2]
[1765165642182,7.64878957,134.25,134.23,0.69]
[1765165645625,26.27076349,134.25,134.21,16.998864]
[1765165645804,26.27076349,134.25,134.19,0.69]
[1765165645805,3.54218895,134.24,134.19,0.69]
[1765165646112,26.07464798,134.23,134.2,0.69]
[1765165653609,29.46683693,134.23,134.2,0.69]
[1765165656094,26.07464798,134.23,134.2,0.69]
[1765165656523,7.44989942,134.23,134.2,0.69]
[1765165658920,7.44949465,134.24,134.2,0.69]
[1765165659320,7.64895716,134.25,134.21,11.59218895]
[1765165659699,0.2,134.25,134.22,11.5325248]
[1765165660208,0.2,134.25,134.23,0.69]
[1765165662307,0.2,134.25,134.23,4.08218895]
[1765165662626,0.2,134.25,134.24,0.69]
[1765165666924,0.2,134.25,134.24,2.86022614]
[1765165667641,0.2,134.25,134.24,27.36909014]
[1765165668940,0.2,134.25,134.24,25.198864]
[1765165669417,0.2,134.25,134.24,16.998864]
[1765165670747,0.2,134.25,134.23,2.17022614]
[1765165670748,7.64878957,134.25,134.21,81.70870822]
[1765165670916,7.64878957,134.25,134.2,0.69]
[1765165670917,2.32022614,134.24,134.2,0.69]
[1765165671239,2.17022614,134.23,134.18,25.198864]
[1765165671445,0.15,134.22,134.18,8.89]
[1765165671634,0.15,134.22,134.18,25.198864]
[1765165671835,0.15,134.22,134.18,24.508864]
[1765165672032,0.15,134.22,134.19,0.69]
[1765165672345,7.45100961,134.21,134.19,0.69]
[1765165676750,20.9459779,134.23,134.19,0.69]
[1765165676943,7.45045447,134.22,134.19,0.69]
[1765165678750,28.2468168,134.22,134.19,0.69]
[1765165679738,26.07659066,134.22,134.19,0.69]
[1765165687237,28.2468168,134.22,134.19,0.69]
[1765165688628,26.07659066,134.22,134.19,0.69]
[1765165690544,20.94636233,134.22,134.19,0.69]
[1765165690748,20.94636233,134.22,134.19,0.66]
[1765165691650,28.2468168,134.22,134.19,0.66]
[1765165691853,28.3968168,134.22,134.19,0.66]
[1765165692353,28.2468168,134.22,134.19,0.66]
[1765165692546,28.3968168,134.22,134.19,0.66]
[1765165692744,26.07659066,134.22,134.19,0.66]
[1765165692948,28.3968168,134.22,134.19,0.66]
[1765165693244,28.2468168,134.22,134.19,0.66]
[1765165694264,2.17022614,134.2,134.18,16.308864]
[1765165694460,2.32022614,134.2,134.16,0.66]
[1765165694657,2.32022614,134.2,134.17,0.66]
[1765165696053,7.45212012,134.19,134.17,0.66]
[1765165699374,26.08242044,134.19,134.16,0.66]
[1765165699663,28.25264658,134.19,134.16,0.66]
[1765165699836,28.40264658,134.19,134.15,8.2]
[1765165700033,0.15,134.18,134.15,0.66]
[1765165700264,2.32022614,134.18,134.15,0.66]
[1765165700461,2.17022614,134.16,134.08,7.45806204]
[1765165700681,2.17022614,134.14,134.11,0.66]
[1765165700857,2.17022614,134.15,134.11,0.66]
[1765165701050,2.17022614,134.15,134.11,16.968864]
[1765165701246,2.17022614,134.18,134.12,2.17022614]
[1765165701579,2.17022614,134.18,134.13,16.308864]
[1765165701767,2.17022614,134.18,134.13,16.988864]
[1765165701948,2.17022614,134.17,134.14,0.68]
[1765165702148,2.32022614,134.18,134.14,0.68]
[1765165702351,36.45264658,134.19,134.14,0.68]
[1765165702779,36.60264658,134.19,134.14,0.68]
[1765165704752,36.45264658,134.19,134.14,0.68]
[1765165705369,26.08242044,134.19,134.14,19.15909014]
[1765165705674,28.25264658,134.19,134.15,8.22]
[1765165705867,2.32022614,134.18,134.15,8.9]
[1765165706249,2.17022614,134.18,134.15,0.68]
[1765165707072,7.45323097,134.17,134.15,0.68]
[1765165707371,28.25653454,134.17,134.14,16.988864]
[1765165707576,28.40653454,134.17,134.14,16.308864]
[1765165707755,2.17022614,134.16,134.14,16.308864]
[1765165707955,2.17022614,134.16,134.13,16.988864]
[1765165708272,2.32022614,134.16,134.12,8.9]
[1765165708576,2.17022614,134.16,134.13,0.68]
[1765165708962,2.32022614,134.16,134.12,8.9]